bitfinex/quotes_ETHUSD_20251215
["timestamp","ask_amount","ask_price","bid_price","bid_amount"]
[1765765648434,0.517,3136.1,3136.0,0.6754]
[1765765648631,0.517,3136.1,3136.0,1.1406]
[1765765648837,6.89434766,3136.1,3135.6,0.4652]
[1765765649041,0.00966759,3135.9,3135.6,0.4652]
[1765765649566,0.00966759,3135.9,3135.8,0.4833]
[1765765649930,0.00966759,3136.0,3135.8,0.9485]
[1765765650130,0.002,3136.2,3135.8,0.4652]
[1765765650335,0.519,3136.2,3136.1,0.4833]
[1765765650837,0.519,3136.2,3136.1,0.9485]
[1765765651268,0.002,3136.2,3136.1,0.9485]
[1765765651468,3.19057215,3136.2,3136.1,0.9485]
[1765765651679,0.002,3136.2,3136.1,0.9485]
[1765765651852,0.002,3136.2,3136.1,1.36223592]
[1765765652051,0.002,3136.2,3136.1,0.9485]
[1765765653675,0.002,3136.2,3136.1,1.52897529]
[1765765653849,0.002,3136.2,3136.1,0.9485]
[1765765654695,3.19057215,3136.2,3136.1,0.9485]
[1765765655556,0.002,3136.2,3136.1,0.9485]
[1765765657490,0.002,3136.2,3135.7,0.58047529]
[1765765657491,0.002,3136.2,3135.8,0.4652]
[1765765657953,0.002,3136.2,3136.1,0.4833]
[1765765659095,3.19057215,3136.2,3136.1,0.4833]
[1765765659299,3.19057215,3136.2,3136.1,0.9485]
[1765765660602,0.002,3136.2,3136.1,0.9485]
[1765765661967,0.95575127,3136.2,3135.5,0.1921]
[1765765662172,0.00966759,3135.7,3135.5,0.1921]
[1765765662773,0.2632,3135.6,3134.9,0.6573]
[1765765662983,3.18938572,3135.4,3134.9,0.6573]
[1765765663205,0.00966759,3135.3,3135.0,0.4652]
[1765765663402,0.517,3135.4,3135.0,0.4652]
[1765765663704,0.517,3135.4,3135.3,0.4833]
[1765765664071,0.517,3135.4,3135.3,0.9485]
[1765765665794,0.517,3135.4,3134.9,0.1921]
[1765765665795,3.70638572,3135.4,3134.9,0.1921]
[1765765666113,0.00966759,3135.1,3134.6,0.4652]
[1765765666309,0.517,3135.0,3134.6,0.4652]
[1765765666618,0.00966759,3134.9,3134.6,0.4652]
[1765765667000,0.00966759,3134.9,3134.8,0.4833]
[1765765668114,3.199562,3134.9,3134.8,0.4833]
[1765765669219,0.517,3135.0,3134.8,0.4833]
[1765765669420,0.517,3135.0,3134.9,0.4833]
[1765765670014,0.517,3135.0,3134.9,0.9485]
[1765765670414,3.18935432,3135.5,3134.9,1.36235679]
[1765765670582,0.517,3135.4,3135.0,0.4652]
[1765765671106,0.517,3135.4,3135.3,0.6754]
[1765765671508,0.517,3135.4,3135.3,1.1406]
[1765765672116,3.1985787,3135.9,3135.3,1.1406]
[1765765672283,3.19058154,3136.2,3135.8,0.4833]
[1765765672490,3.19058154,3136.2,3136.1,0.4833]
[1765765672885,0.2652,3136.2,3135.4,0.43301416]
[1765765673090,0.00966759,3136.1,3135.5,0.4652]
[1765765673284,0.00966759,3136.1,3135.5,0.95122698]
[1765765673812,6.37795776,3135.8,3135.3,0.1921]
[1765765674021,3.70597888,3135.8,3135.4,0.4652]
[1765765674213,3.70597888,3135.8,3135.7,0.4833]
[1765765674386,6.89495776,3135.8,3135.4,0.4652]
[1765765674711,6.89495776,3135.8,3135.3,0.1921]
[1765765674712,0.00966759,3135.7,3135.3,0.1921]
[1765765674886,0.00966759,3135.7,3135.3,0.6573]
[1765765675209,0.517,3135.8,3135.6,0.4833]
[1765765675387,0.517,3135.8,3135.7,0.9485]
[1765765675782,3.70597888,3135.8,3135.7,0.9485]
[1765765676415,3.70597888,3135.8,3135.7,0.4833]
[1765765676716,3.70597888,3135.8,3134.9,3.19086498]
[1765765676717,7.85731391,3135.8,3134.9,3.19086498]
[1765765676913,3.71564647,3135.8,3134.9,3.19086498]
[1765765677114,3.71564647,3135.8,3135.7,0.4549]
[1765765677707,7.16782535,3135.8,3135.2,0.4692]
[1765765677907,7.16782535,3135.8,3134.9,0.4702]
[1765765678109,0.00966759,3135.6,3134.9,0.4702]
[1765765678415,0.00966759,3135.6,3134.9,0.91363438]
[1765765678904,0.00966759,3135.6,3135.0,0.4692]
[1765765679585,0.00966759,3135.4,3135.0,0.4692]
[1765765679791,0.52666759,3135.4,3135.0,0.4692]
[1765765680601,3.71608739,3135.4,3135.0,0.4692]
[1765765680806,6.90550719,3135.4,3134.9,0.001]
[1765765681028,3.71608739,3135.4,3134.9,0.4702]
[1765765681391,0.52666759,3135.4,3135.3,0.4549]
[1765765681790,3.71605331,3135.4,3135.3,0.4549]
[1765765682102,0.00966759,3136.1,3135.3,0.9241]
[1765765682303,0.52666759,3136.0,3135.5,0.4549]
[1765765682699,0.52666759,3136.0,3135.2,0.4692]
[1765765682700,0.00966759,3135.8,3135.2,0.4692]
[1765765682888,0.00966759,3135.6,3134.9,0.4702]
[1765765683084,0.00966759,3135.4,3134.9,0.4702]
[1765765683289,0.52666759,3135.6,3134.9,0.4702]
[1765765683509,0.52666759,3135.6,3135.3,0.4549]
[1765765683717,0.52666759,3135.6,3134.9,0.4702]
[1765765683900,0.00966759,3135.2,3134.9,0.001]
[1765765684095,3.18979266,3135.0,3134.9,0.001]
[1765765684596,4.1532743,3135.0,3134.9,0.001]
[1765765684800,4.4164743,3135.0,3134.9,0.001]
[1765765685094,4.8219783,3135.0,3134.9,0.001]
[1765765685686,4.14360671,3135.0,3134.9,0.001]
[1765765685902,4.66060671,3135.0,3134.9,0.001]
[1765765687917,4.92380671,3135.0,3134.9,0.001]
[1765765688121,5.32931071,3135.0,3134.9,0.001]
[1765765689614,15.246985,3135.0,3134.9,0.001]
[1765765689922,5.909786,3135.0,3134.9,0.001]
[1765765690995,12.374136,3135.0,3134.9,0.001]
[1765765691994,10.61931,3135.0,3134.9,0.001]
[1765765692192,10.267387,3135.0,3134.9,0.001]
[1765765692518,8.309986,3135.0,3134.9,0.001]
[1765765693016,33.905676,3135.0,3134.9,0.001]
[1765765693201,31.831887,3135.0,3134.9,0.001]
[1765765693400,31.332464,3135.0,3134.9,0.001]
[1765765693617,27.47252,3135.0,3134.9,0.001]
[1765765693823,19.659817,3135.0,3134.9,0.001]
[1765765693992,20.823817,3135.0,3134.9,0.001]
[1765765694410,20.306817,3135.0,3134.9,0.001]
[1765765694615,20.578728,3135.0,3134.9,0.001]
[1765765695012,20.897996,3135.0,3134.9,0.001]
[1765765695221,20.578728,3135.0,3134.9,0.001]
[1765765695719,11.240544,3135.0,3134.9,0.001]
[1765765696125,16.763301,3135.0,3134.9,0.001]
[1765765696328,16.316901,3135.0,3134.9,0.001]
[1765765697005,18.679817,3135.0,3134.9,0.001]
[1765765697829,17.398803,3135.0,3134.9,0.001]
[1765765698002,5.908786,3135.0,3134.9,0.001]
[1765765698322,8.328927,3135.0,3134.9,0.001]
[1765765698500,5.908786,3135.0,3134.9,0.001]
[1765765699024,22.582318,3135.0,3134.9,0.001]
[1765765699524,8.64923,3135.0,3134.9,0.001]
[1765765700233,14.240959,3135.0,3134.9,0.001]
[1765765700434,13.963529,3135.0,3134.9,0.001]
[1765765701026,5.908786,3135.0,3134.9,0.001]
[1765765701223,15.251091,3135.0,3134.9,0.001]
[1765765702217,24.39411736,3135.0,3134.9,0.001]
[1765765703231,42.00964736,3135.0,3134.9,0.001]
[1765765709228,0.98597929,3134.8,3134.4,0.001]
[1765765709531,37.11990824,3134.5,3134.4,0.001]
[1765765709713,37.89910824,3134.5,3134.4,0.001]
[1765765711218,37.89910824,3134.5,3133.6,0.001]
[1765765711219,40.27795658,3133.7,3133.6,0.001]
[1765765711528,40.81965658,3133.7,3133.6,0.001]
[1765765711727,41.08285658,3133.7,3133.6,0.001]
[1765765712806,36.50636536,3133.2,3133.1,0.001]
[1765765713006,37.28076536,3133.2,3133.1,0.001]
[1765765713234,35.12661851,3133.2,3133.1,0.001]
[1765765713539,42.00667987,3133.2,3133.1,0.001]
[1765765714334,21.58155538,3133.2,3132.4,0.001]
[1765765714534,7.24980824,3132.5,3132.4,0.001]
[1765765714703,7.76580824,3132.5,3132.4,0.001]
[1765765715033,7.76580824,3132.5,3131.0,0.001]
[1765765715034,30.0,3132.3,3131.0,0.001]
[1765765715232,30.0,3132.3,3131.1,0.1888]
[1765765715233,40.31009061,3131.9,3131.1,0.1888]
[1765765715530,40.82609061,3131.9,3131.1,0.1888]
[1765765715831,0.405504,3131.3,3131.0,0.001]
[1765765716022,30.0,3131.8,3131.1,0.1888]
[1765765716348,30.0,3131.8,3131.1,0.65]
[1765765716349,0.516,3131.7,3131.1,0.65]
[1765765716833,0.00966759,3131.2,3131.1,0.1888]
[1765765717010,0.52566759,3131.2,3131.1,0.1888]
[1765765717205,0.52566759,3131.2,3131.1,0.6728]
[1765765717206,3.71933136,3131.2,3131.1,0.6728]
[1765765717509,3.71933136,3131.2,3131.1,1.134]
[1765765717802,0.00966759,3131.9,3131.1,1.134]
[1765765718004,2.811115,3132.3,3131.8,0.484]
[1765765718252,0.516,3132.2,3131.2,0.4612]
[1765765718453,0.516,3132.2,3131.3,0.38437179]
[1765765718612,0.516,3132.2,3132.1,0.6728]
[1765765719017,0.516,3132.2,3132.1,1.134]
[1765765719412,3.70864414,3132.2,3132.1,1.134]
[1765765720039,3.70864414,3132.2,3132.1,0.6728]
[1765765720344,3.70864414,3132.2,3132.1,1.134]
[1765765720848,3.19264414,3132.2,3132.1,1.134]
[1765765721052,3.70864414,3132.2,3132.1,1.134]
[1765765721412,3.70864414,3132.2,3132.1,0.6728]
[1765765721745,3.71064414,3132.2,3132.1,0.6728]
[1765765721948,3.19464414,3132.2,3132.1,0.6728]
[1765765722110,3.71064414,3132.2,3132.1,1.134]
[1765765723019,3.71064414,3132.2,3132.1,0.6728]
[1765765723224,6.90328828,3132.2,3131.7,0.4612]
[1765765723414,0.00966759,3131.8,3131.7,0.4612]
[1765765723615,3.7187195,3131.8,3131.7,0.4612]
[1765765723826,3.7187195,3131.8,3131.7,0.9452]
[1765765725548,3.7187195,3131.8,3131.3,0.4622]
[1765765725755,0.00966759,3131.4,3131.3,0.4622]
[1765765726050,0.52566759,3131.4,3131.3,0.4622]
[1765765726217,0.52566759,3131.4,3131.3,0.9462]
[1765765727954,3.71912738,3131.4,3131.3,0.9462]
[1765765730152,3.20312738,3131.4,3131.3,0.9462]
[1765765730328,3.71912738,3131.4,3131.3,0.9462]
[1765765731159,3.20312738,3131.4,3131.3,0.9462]
[1765765731362,3.71912738,3131.4,3131.3,0.9462]
[1765765732176,0.52566759,3131.4,3131.3,0.9462]
[1765765732575,3.71912738,3131.4,3131.3,0.9462]
[1765765733175,0.00966759,3131.4,3131.3,0.9462]
[1765765733363,0.52566759,3131.4,3131.3,0.9462]
[1765765734182,0.01166759,3132.2,3131.3,4.13976177]
[1765765734368,0.00966759,3132.0,3131.8,0.484]
[1765765734565,0.518,3131.9,3131.8,0.484]
[1765765734860,0.518,3131.9,3131.8,0.9452]
[1765765735066,3.71094996,3131.9,3131.8,0.9452]
[1765765736355,0.518,3131.9,3131.8,0.9452]
[1765765736531,3.71094996,3131.9,3131.8,0.9452]
[1765765736860,3.71094996,3131.9,3131.8,0.484]
[1765765737065,3.71094996,3131.9,3131.8,0.9405]
[1765765737436,3.19494996,3131.9,3131.8,0.9405]
[1765765737669,3.71094996,3131.9,3131.8,0.9405]
[1765765737864,3.19494996,3131.9,3131.8,0.4841]
[1765765738086,3.71094996,3131.9,3131.8,0.9406]
[1765765738791,3.71094996,3131.9,3131.8,0.4841]
[1765765738970,3.71094996,3131.9,3131.8,0.9406]
[1765765741396,3.19494996,3131.9,3131.8,0.9406]
[1765765741566,3.71094996,3131.9,3131.8,0.9406]
[1765765741897,0.002,3131.9,3131.8,0.9406]
[1765765742100,0.002,3132.2,3131.8,7.32670382]
[1765765742390,0.516,3132.7,3132.1,0.6838]
[1765765742594,6.38447296,3132.6,3132.1,0.6838]
[1765765742772,0.00966759,3132.5,3132.2,0.4565]
[1765765742970,0.516,3132.7,3132.5,0.4841]
[1765765742971,3.19216357,3132.7,3132.5,0.4841]
[1765765743293,0.00966759,3132.8,3132.6,0.4841]
[1765765743294,3.20172778,3132.8,3132.6,0.4841]
[1765765743598,3.20172778,3132.8,3132.7,0.4841]
[1765765743964,3.20172778,3132.8,3132.2,0.4565]
[1765765743965,7.30131341,3132.8,3132.1,0.6562]
[1765765744167,0.00966759,3132.4,3132.1,0.6562]
[1765765744368,3.70863512,3132.3,3132.1,0.6562]
[1765765744590,0.516,3132.3,3132.2,0.4565]
[1765765744765,0.516,3132.3,3132.2,0.9406]
[1765765744964,3.70854222,3132.3,3132.2,0.9406]
[1765765745606,0.516,3132.3,3132.2,0.9406]
[1765765746215,3.19223126,3132.7,3132.2,0.9406]
[1765765746216,0.002,3133.2,3132.2,0.9406]
[1765765746389,0.002,3133.2,3133.1,0.6838]
[1765765746583,0.518,3133.2,3133.1,1.1403]
[1765765747821,0.518,3133.2,3133.1,0.6838]
[1765765747999,0.518,3133.2,3133.1,1.1403]
[1765765748596,0.002,3133.2,3133.1,1.1403]
[1765765748799,0.518,3133.2,3133.1,1.1403]
[1765765749006,0.002,3133.2,3133.1,1.1403]
[1765765749253,0.002,3133.2,3133.1,1.57351536]
[1765765749393,0.002,3133.2,3133.1,4.33202704]
[1765765750038,0.002,3133.2,3133.1,1.1403]
[1765765750235,0.002,3133.2,3133.1,4.33202704]
[1765765750436,0.002,3133.2,3133.1,4.91250233]
[1765765750733,0.002,3133.2,3133.1,5.42850233]
[1765765750894,0.002,3133.2,3133.1,6.29053695]
[1765765751330,0.002,3133.5,3133.2,0.98597929]
[1765765751515,0.002,3134.5,3133.9,0.58047529]
[1765765751824,0.002,3134.5,3134.4,0.6838]
[1765765752022,0.002,3134.5,3134.4,1.1403]
[1765765752603,0.002,3134.5,3134.4,4.91117855]
[1765765752916,0.002,3134.5,3134.4,5.72134868]
[1765765753156,0.002,3134.5,3134.4,0.6838]
[1765765753332,0.002,3134.5,3134.4,1.1403]
[1765765757238,0.002,3134.5,3134.4,4.33070326]
[1765765757628,0.002,3134.5,3134.4,1.1403]
[1765765760664,0.002,3134.5,3134.4,4.33070326]
[1765765760872,0.002,3134.5,3134.4,5.08602256]
[1765765761389,0.002,3134.5,3134.4,1.8956193]
[1765765761544,0.002,3134.5,3134.1,0.1997]
[1765765761944,0.517,3134.5,3134.1,0.6562]
[1765765762145,0.517,3134.5,3134.4,0.4841]
[1765765762582,0.517,3134.5,3134.4,0.9406]
[1765765763366,0.002,3134.5,3134.4,0.9406]
[1765765763550,0.002,3134.5,3134.4,4.60217064]
[1765765763878,0.002,3134.5,3134.4,4.13100326]
[1765765764669,0.002,3134.5,3134.4,4.71147855]
[1765765764875,0.002,3134.5,3134.4,4.74338258]
[1765765765574,0.002,3134.5,3134.4,4.71147855]
[1765765765884,0.002,3134.5,3134.4,2.36278274]
[1765765766053,0.002,3134.5,3134.4,5.553186]
[1765765766786,0.002,3134.5,3134.4,1.06457529]
[1765765767084,0.002,3134.5,3134.4,1.56067529]
[1765765770725,0.002,3134.5,3134.4,4.75107855]
[1765765771815,0.002,3134.5,3134.4,1.56067529]
[1765765774689,0.002,3134.5,3134.4,1.06457529]
[1765765774889,0.002,3134.5,3134.4,1.56217529]
[1765765776714,0.002,3134.5,3134.4,1.06457529]
[1765765777013,0.002,3134.5,3134.0,0.1938]
[1765765777213,0.002,3134.5,3134.4,0.4778]
[1765765777620,0.002,3134.5,3134.4,4.16580326]
[1765765777812,0.002,3134.5,3134.4,4.64362172]
[1765765778396,0.002,3134.5,3134.4,1.45321846]
[1765765778732,0.002,3134.5,3134.4,4.74627855]
[1765765780522,0.002,3134.5,3134.4,1.05827529]
[1765765781106,0.002,3134.5,3134.4,1.55587529]
[1765765782130,0.2732,3134.5,3134.4,0.58047529]
[1765765782424,0.2732,3134.5,3134.0,4.46267829]
[1765765782640,0.2732,3134.5,3134.0,4.90894612]
[1765765783746,0.2732,3134.5,3134.0,1.71814312]
[1765765784144,0.2732,3134.5,3134.1,0.58047529]
[1765765784740,0.2732,3134.5,3134.1,1.07807529]
[1765765785765,0.2732,3134.5,3134.2,0.58047529]
[1765765787276,0.2732,3134.5,3134.1,0.4976]
[1765765787478,0.2732,3134.5,3134.2,0.58047529]
[1765765789175,0.002,3134.5,3134.4,0.4778]
[1765765789653,0.002,3134.5,3134.4,1.00730403]
[1765765791279,0.002,3134.5,3134.4,4.74627855]
[1765765791574,0.002,3134.5,3134.4,5.26127855]
[1765765791774,0.002,3134.5,3134.4,6.14914886]
[1765765792952,0.002,3134.5,3134.4,6.18105289]
[1765765793168,0.002,3134.5,3134.4,6.58655689]
[1765765793372,0.002,3134.5,3134.4,6.55465286]
[1765765795182,0.002,3134.5,3134.4,5.05367357]
[1765765795384,0.002,3134.5,3134.4,5.0855776]
[1765765795568,0.002,3134.5,3134.4,6.18005289]
[1765765795969,0.002,3134.8,3134.5,0.98597929]
[1765765796164,0.002,3135.8,3134.8,0.58047529]
[1765765796370,0.002,3135.8,3135.7,0.4778]
[1765765797673,0.2772,3135.8,3135.2,0.1816]
[1765765797886,0.002,3135.8,3135.7,3.66438058]
[1765765798372,0.002,3135.8,3135.7,0.4753]
[1765765799298,0.2772,3135.8,3135.5,3.1892161]
[1765765799496,0.2772,3135.8,3135.4,0.58047529]
[1765765799796,0.2772,3135.8,3135.5,3.18925038]
[1765765799964,0.002,3135.8,3135.7,0.4753]
[1765765800281,0.002,3135.8,3135.7,4.24485587]
[1765765800482,0.002,3135.8,3135.7,5.90236491]
[1765765800882,0.002,3135.8,3135.7,6.41636491]
[1765765801095,0.002,3135.8,3135.0,0.4572]
[1765765801296,0.2752,3135.6,3135.0,6.51955754]
[1765765801506,0.002,3135.8,3135.1,0.4572]
[1765765801856,0.002,3135.8,3135.1,1.03767529]
[1765765802299,0.002,3135.8,3135.7,0.4753]
[1765765802658,0.002,3135.8,3135.7,0.9643908]
[1765765803189,0.002,3135.8,3135.7,4.73394667]
[1765765803393,0.002,3135.8,3135.7,6.59975187]
[1765765803563,0.002,3135.8,3135.7,6.56786107]
[1765765803976,0.002,3135.8,3135.7,12.65693364]
[1765765804188,0.002,3136.2,3135.9,0.405504]
[1765765804392,0.002,3136.2,3135.8,0.58047529]
[1765765804393,0.002,3136.2,3136.1,1.062404]
[1765765804595,0.002,3136.2,3136.1,1.22323317]
[1765765804797,0.002,3136.2,3136.1,8.34998103]
[1765765804998,0.002,3137.1,3136.2,0.98597929]
[1765765805203,0.002,3137.1,3137.0,4.068563]
[1765765805405,0.002,3137.1,3137.0,5.16303829]
[1765765805644,0.002,3137.1,3137.0,7.06423749]
[1765765805779,0.002,3137.5,3137.1,0.98597929]
[1765765805982,0.002,3137.5,3137.4,0.6569]
[1765765806196,0.002,3137.5,3137.4,1.519604]
[1765765806394,0.002,3137.5,3137.4,1.1141]
[1765765806703,0.002,3137.5,3137.4,1.27691]
[1765765806998,0.002,3137.5,3137.4,1.85738529]
[1765765807211,0.002,3137.5,3137.4,5.10153787]
[1765765807411,0.002,3137.5,3137.4,4.40593787]
[1765765807574,0.002,3137.5,3137.4,0.58047529]
[1765765807777,0.002,3137.5,3137.4,3.76782787]
[1765765808195,0.002,3137.5,3137.4,0.58047529]
[1765765808367,0.002,3137.5,3137.4,3.76782787]
[1765765808567,0.002,3137.5,3137.4,4.24312787]
[1765765808789,0.002,3137.5,3137.4,5.95739108]
[1765765808996,0.002,3137.5,3137.4,5.50019108]
[1765765809186,0.002,3137.5,3137.4,0.58047529]
[1765765809389,0.2741,3137.5,3137.4,0.58047529]
[1765765810006,0.002,3137.5,3137.4,4.24312787]
[1765765810191,0.002,3137.5,3137.4,4.70032787]
[1765765810502,0.002,3137.5,3137.4,0.58047529]
[1765765810712,0.002,3137.5,3136.1,0.34242917]
[1765765810713,0.2741,3137.5,3136.1,0.34242917]
[1765765810908,0.0028,3137.2,3136.2,0.4572]
[1765765811119,0.0028,3137.2,3136.1,0.1816]
[1765765811289,0.0028,3137.2,3136.2,3.18857215]
[1765765811484,0.2772,3137.1,3136.1,3.62284107]
[1765765811812,0.2772,3137.1,3135.7,0.9712]
[1765765811989,0.2772,3137.1,3135.9,3.18885489]
[1765765812189,0.2772,3137.1,3135.9,0.58047529]
[1765765812405,0.2772,3137.1,3136.1,3.18865658]
[1765765812714,0.2772,3137.1,3136.2,0.58047529]
[1765765813408,3.187759,3137.0,3136.3,0.58047529]
[1765765813778,0.144,3136.9,3136.3,0.58047529]
[1765765813979,0.144,3136.9,3135.9,0.4572]
[1765765813980,0.2701,3136.4,3135.9,0.4572]
[1765765814185,0.80674266,3136.9,3136.3,0.58047529]
[1765765814384,0.4212,3136.9,3136.3,0.58047529]
[1765765814596,0.144,3136.9,3136.3,0.58047529]
[1765765814799,3.18743287,3137.4,3136.3,1.03767529]
[1765765814994,0.002,3137.1,3136.3,0.58047529]
[1765765815312,0.002,3137.1,3136.7,0.58047529]
[1765765815517,0.002,3137.1,3136.8,1.15288063]
[1765765815714,0.002,3137.1,3137.0,0.4753]
[1765765816788,0.002,3137.1,3137.0,0.9325]
[1765765816996,0.002,3137.1,3137.0,1.47837759]
[1765765817410,0.002,3137.1,3137.0,5.21473429]
[1765765817716,0.002,3137.1,3137.0,6.12775125]
[1765765818309,0.002,3137.1,3137.0,5.61375125]
[1765765818523,0.002,3137.1,3137.0,5.15655125]
[1765765818694,0.002,3137.1,3137.0,5.61375125]
[1765765819710,0.002,3137.1,3137.0,5.15655125]
[1765765819916,0.002,3137.1,3137.0,5.67055125]
[1765765820216,0.002,3137.1,3137.0,6.15962884]
[1765765820515,0.002,3137.1,3137.0,6.12775125]
[1765765821199,0.002,3137.1,3137.0,5.67055125]
[1765765821516,0.002,3137.1,3137.0,3.80011188]
[1765765821719,0.002,3137.1,3137.0,3.76823429]
[1765765821893,0.002,3137.1,3137.0,3.76923429]
[1765765822302,0.002,3137.1,3137.0,0.58147529]
[1765765822635,0.002,3137.1,3137.0,3.76923429]
[1765765823427,0.002,3137.1,3137.0,5.42933042]
[1765765824421,0.002,3137.1,3137.0,5.39745283]
[1765765824826,0.002,3137.5,3137.2,0.405504]
[1765765825136,0.002,3138.3,3137.6,0.405504]
[1765765825337,0.002,3138.3,3138.2,0.6569]
[1765765825498,0.002,3138.3,3138.2,4.81464005]
[1765765825821,0.002,3138.3,3138.2,5.67281724]
[1765765826218,0.002,3138.3,3138.0,0.58047529]
[1765765826422,0.002,3138.3,3138.2,3.76701534]
[1765765829005,0.002,3138.3,3138.2,4.22001534]
[1765765829222,0.002,3138.3,3138.2,4.70511534]
[1765765830832,0.002,3138.3,3138.2,3.76701534]
[1765765831003,0.002,3138.3,3138.2,4.46238251]
[1765765831530,0.002,3138.3,3138.2,4.91538251]
[1765765831727,0.002,3138.3,3138.2,5.83785191]
[1765765832031,0.002,3138.4,3138.3,0.98597929]
[1765765832325,0.002,3138.4,3138.3,11.19959037]
[1765765832524,0.002,3138.4,3138.3,12.79480773]
[1765765833607,0.002,3138.4,3138.3,13.25743745]
[1765765834409,0.002,3138.4,3138.3,12.79480773]
[1765765834740,0.002,3138.4,3138.3,4.78165587]
[1765765834922,0.002,3138.4,3138.3,3.18643851]
[1765765835127,0.002,3138.4,3137.6,0.1275378]
[1765765835128,0.5493,3138.4,3137.6,0.1275378]
[1765765835307,0.0026,3138.2,3137.7,3.18704783]
[1765765835831,0.002,3138.4,3137.8,0.58047529]
[1765765836003,0.002,3138.4,3137.9,0.6954571]
[1765765836205,0.002,3138.4,3138.0,6.37348628]
[1765765836516,0.002,3138.4,3138.1,1.09347529]
[1765765837407,0.002,3138.2,3138.1,0.58047529]
[1765765838607,0.002,3138.2,3138.1,3.76711688]
[1765765839132,0.2661,3138.2,3138.1,3.76711688]
[1765765839818,0.2661,3138.2,3138.1,0.58047529]
[1765765840528,0.2661,3138.2,3138.1,3.76711688]
[1765765841230,0.2661,3138.2,3138.1,0.58047529]
[1765765842041,0.5491,3138.2,3138.1,0.58047529]
[1765765842633,0.5491,3138.2,3137.4,0.513]
[1765765842834,0.2832,3138.1,3137.7,3.18703242]
[1765765843175,0.2832,3138.1,3137.5,3.18724759]
[1765765843176,0.2641,3137.8,3137.6,0.58047529]
[1765765844024,0.2641,3137.8,3137.5,3.18724759]
[1765765844025,0.0026,3137.7,3137.4,0.58047529]
[1765765844368,0.1392,3137.9,3137.3,3.18742067]
[1765765844514,0.1392,3137.9,3137.1,3.38593912]
[1765765844515,0.2832,3137.5,3137.2,0.58047529]
[1765765844820,0.2832,3137.5,3137.4,3.76782787]
[1765765845025,0.1392,3137.9,3137.4,7.40818045]
[1765765845234,0.1392,3137.9,3137.4,4.70592787]
[1765765845444,0.1392,3137.9,3137.4,0.58047529]
[1765765845652,0.4224,3137.9,3137.4,0.58047529]
[1765765846028,0.2641,3137.5,3137.4,0.58047529]
[1765765848739,0.5471,3137.5,3137.4,0.58047529]
[1765765850449,0.5471,3137.5,3137.0,0.001]
[1765765850636,0.0028,3137.1,3137.0,0.001]
[1765765851433,0.286,3137.1,3137.0,0.001]
[1765765851632,0.799,3137.1,3137.0,0.001]
[1765765852453,0.286,3137.1,3137.0,0.001]
[1765765852651,0.799,3137.1,3137.0,0.001]
[1765765853448,3.98665739,3137.1,3137.0,0.001]
[1765765853653,4.70504415,3137.1,3137.0,0.001]
[1765765854621,5.11054815,3137.1,3137.0,0.001]
[1765765855662,5.69102344,3137.1,3137.0,0.001]
[1765765855833,32.89227464,3137.1,3137.0,0.001]
[1765765856852,42.05815664,3137.1,3137.0,0.001]
[1765765858673,0.405504,3137.0,3136.3,0.001]
[1765765858840,37.76808008,3136.4,3136.3,0.001]
[1765765859170,38.28108008,3136.4,3136.3,0.001]
[1765765859377,38.56428008,3136.4,3136.3,0.001]
[1765765859531,41.75264891,3136.4,3136.3,0.001]
[1765765859731,42.54555663,3136.4,3136.3,0.001]
[1765765860333,42.67328421,3136.4,3136.3,0.001]
[1765765860767,29.77751821,3136.4,3136.3,0.001]
[1765765860972,8.97038143,3136.4,3136.3,0.001]
[1765765861145,4.67944414,3136.4,3136.3,0.001]
[1765765861345,5.19244414,3136.4,3136.3,0.001]
[1765765861548,9.07329614,3136.4,3136.3,0.001]
[1765765861776,29.59345214,3136.4,3136.3,0.001]
[1765765861974,27.94409314,3136.4,3136.3,0.001]
[1765765862173,9.78954414,3136.4,3136.3,0.001]
[1765765862372,5.18277655,3136.4,3136.3,0.001]
[1765765865985,4.89957655,3136.4,3136.3,0.001]
[1765765866282,4.38986883,3136.4,3136.3,0.001]
[1765765866458,3.87686883,3136.4,3136.3,0.001]
[1765765866658,4.38986883,3136.4,3136.3,0.001]
[1765765867284,3.87686883,3136.4,3136.3,0.001]
[1765765867455,4.38986883,3136.4,3136.3,0.001]
[1765765867661,5.14864758,3136.4,3136.3,0.001]
[1765765868086,4.86544758,3136.4,3136.3,0.001]
[1765765868654,5.14864758,3136.4,3136.3,0.001]
[1765765868874,8.18310858,3136.4,3136.3,0.001]
[1765765869251,7.67010858,3136.4,3136.3,0.001]
[1765765869453,8.18310858,3136.4,3136.3,0.001]
[1765765869776,4.86544758,3136.4,3136.3,0.001]
[1765765870290,5.14864758,3136.4,3136.3,0.001]
[1765765871186,4.35244758,3136.4,3136.3,0.001]
[1765765871393,0.513,3136.4,3136.3,0.001]
[1765765871561,0.7962,3136.4,3136.3,0.001]
[1765765871901,0.7962,3136.4,3136.1,0.001]
[1765765871902,12.232227,3136.3,3136.1,0.001]
[1765765872180,17.2068947,3136.2,3136.1,0.001]
[1765765872383,8.3499397,3136.2,3136.1,0.001]
[1765765872992,19.7241607,3136.2,3136.1,0.001]
[1765765873359,9.0057147,3136.2,3136.1,0.001]
[1765765873886,23.1505007,3136.2,3136.1,0.001]
[1765765874064,19.9396867,3136.2,3136.1,0.001]
[1765765874876,35.9027997,3136.2,3136.1,0.001]
[1765765875083,6.4157997,3136.2,3136.1,0.001]